[Event "November 21 Late 2023"]
[Site "https://www.chess.com"]
[Date "2023.11.21"]
[Round "4"]
[White "Yushko, Olga"]
[Black "Erdogan, Anil Berk"]
[Result "0-1"]
[Board "73"]
[TimeControl "180+1"]
[WhiteFideId "14114500"]
[BlackFideId "6348173"]
[WhiteElo "2028"]
[BlackElo "2007"]
[WhiteTeam "UKR"]
[BlackTeam "TUR"]
[WhiteClock "0:00:02"]
[BlackClock "0:00:54"]

1. d4 {[%clk 0:02:59]}  Nf6 {[%clk 0:02:59]} 2. c4 {[%clk 0:02:58]}  c5 {[%clk 0:03:00]} 3. d5 {[%clk 0:02:58]}  e6 {[%clk 0:03:01]} 4. Nc3 {[%clk 0:02:53]}  exd5 {[%clk 0:03:02]} 5. cxd5 {[%clk 0:02:53]}  d6 {[%clk 0:03:03]} 6. Nf3 {[%clk 0:02:53]}  g6 {[%clk 0:03:03]} 7. Bg5 {[%clk 0:02:50]}  Bg7 {[%clk 0:03:03]} 8. e4 {[%clk 0:02:41]}  a6 {[%clk 0:03:01]} 9. a4 {[%clk 0:02:27]}  Bg4 {[%clk 0:02:59]} 10. Be2 {[%clk 0:02:27]}  Bxf3 {[%clk 0:02:59]} 11. Bxf3 {[%clk 0:02:27]}  O-O {[%clk 0:02:59]} 12. O-O {[%clk 0:02:26]}  Nbd7 {[%clk 0:03:00]} 13. Bf4 {[%clk 0:02:08]}  Qe7 {[%clk 0:02:59]} 14. Re1 {[%clk 0:02:03]}  Ne5 {[%clk 0:02:59]} 15. Be2 {[%clk 0:01:59]}  Nfd7 {[%clk 0:02:53]} 16. Qd2 {[%clk 0:01:56]}  Rab8 {[%clk 0:02:49]} 17. Nd1 {[%clk 0:01:38]}  c4 {[%clk 0:02:48]} 18. Bg5 {[%clk 0:01:35]}  Bf6 {[%clk 0:02:46]} 19. Be3 {[%clk 0:01:33]}  g5 {[%clk 0:02:25]} 20. g3 {[%clk 0:01:20]}  g4 {[%clk 0:02:22]} 21. Bf4 {[%clk 0:01:18]}  b5 {[%clk 0:02:18]} 22. axb5 {[%clk 0:01:15]}  axb5 {[%clk 0:02:19]} 23. Ne3 {[%clk 0:01:15]}  Bg7 {[%clk 0:01:56]} 24. Bxg4 {[%clk 0:01:07]}  Nxg4 {[%clk 0:01:54]} 25. Nxg4 {[%clk 0:01:07]}  Ne5 {[%clk 0:01:54]} 26. Bxe5 {[%clk 0:01:04]}  Bxe5 {[%clk 0:01:54]} 27. Ne3 {[%clk 0:01:02]}  Qf6 {[%clk 0:01:48]} 28. Ng4 {[%clk 0:00:57]}  Qg7 {[%clk 0:01:46]} 29. f4 {[%clk 0:00:52]}  Bxb2 {[%clk 0:01:44]} 30. Rab1 {[%clk 0:00:45]}  Bd4+ {[%clk 0:01:44]} 31. Kh1 {[%clk 0:00:44]}  Bc3 {[%clk 0:01:41]} 32. Qe2 {[%clk 0:00:43]}  Bxe1 {[%clk 0:01:41]} 33. Rxe1 {[%clk 0:00:44]}  c3 {[%clk 0:01:40]} 34. e5 {[%clk 0:00:43]}  b4 {[%clk 0:01:28]} 35. Nf6+ {[%clk 0:00:43]}  Kh8 {[%clk 0:01:28]} 36. Nd7 {[%clk 0:00:43]}  b3 {[%clk 0:01:16]} 37. Nxb8 {[%clk 0:00:37]}  Rxb8 {[%clk 0:01:15]} 38. Qc4 {[%clk 0:00:38]}  b2 {[%clk 0:01:12]} 39. Rb1 {[%clk 0:00:35]}  Qg6 {[%clk 0:01:11]} 40. e6 {[%clk 0:00:17]}  Qxb1+ {[%clk 0:01:09]} 41. Kg2 {[%clk 0:00:18]}  Qc2+ {[%clk 0:01:02]} 42. Kh3 {[%clk 0:00:19]}  Qf5+ {[%clk 0:00:56]} 43. g4 {[%clk 0:00:17]}  Qf6 {[%clk 0:00:56]} 44. g5 {[%clk 0:00:13]}  Qg7 {[%clk 0:00:55]} 45. Kg4 {[%clk 0:00:02]}  b1=Q {[%clk 0:00:54]} 0-1

[Event "November 21 Late 2023"]
[Site "https://www.chess.com"]
[Date "2023.11.21"]
[Round "4"]
[White "Ivanov, Aleksandr"]
[Black "Leiva, Gianmarco"]
[Result "0-1"]
[Board "74"]
[TimeControl "180+1"]
[WhiteFideId "2092980"]
[BlackFideId "3804399"]
[WhiteElo "2090"]
[BlackElo "2335"]
[WhiteTeam "USA"]
[BlackTeam "PER"]
[WhiteClock "0:00:21"]
[BlackClock "0:01:05"]

1. d4 {[%clk 0:02:59]}  g6 {[%clk 0:02:59]} 2. c4 {[%clk 0:02:58]}  Bg7 {[%clk 0:03:00]} 3. e4 {[%clk 0:02:58]}  d6 {[%clk 0:03:00]} 4. Nc3 {[%clk 0:02:57]}  Nc6 {[%clk 0:03:00]} 5. d5 {[%clk 0:02:56]}  Nd4 {[%clk 0:02:56]} 6. Be3 {[%clk 0:02:54]}  c5 {[%clk 0:02:55]} 7. dxc6 {[%clk 0:02:51]}  Nxc6 {[%clk 0:02:55]} 8. Nf3 {[%clk 0:02:43]}  Bxc3+ {[%clk 0:02:35]} 9. bxc3 {[%clk 0:02:42]}  Nf6 {[%clk 0:02:36]} 10. Bd3 {[%clk 0:02:39]}  Bg4 {[%clk 0:02:35]} 11. h3 {[%clk 0:02:33]}  Bxf3 {[%clk 0:02:35]} 12. Qxf3 {[%clk 0:02:33]}  Ne5 {[%clk 0:02:35]} 13. Qe2 {[%clk 0:02:32]}  Rc8 {[%clk 0:02:31]} 14. Bxa7 {[%clk 0:02:28]}  b6 {[%clk 0:02:29]} 15. c5 {[%clk 0:02:10]}  Nxd3+ {[%clk 0:02:14]} 16. Qxd3 {[%clk 0:02:10]}  bxc5 {[%clk 0:02:14]} 17. Qb5+ {[%clk 0:01:51]}  Qd7 {[%clk 0:02:09]} 18. Qb6 {[%clk 0:01:41]}  Ra8 {[%clk 0:01:57]} 19. Rb1 {[%clk 0:01:31]}  O-O {[%clk 0:01:55]} 20. O-O {[%clk 0:01:20]}  Rxa7 {[%clk 0:01:53]} 21. e5 {[%clk 0:01:19]}  dxe5 {[%clk 0:01:50]} 22. Qxc5 {[%clk 0:01:18]}  Rxa2 {[%clk 0:01:46]} 23. Qxe5 {[%clk 0:01:15]}  Rc8 {[%clk 0:01:42]} 24. Rfe1 {[%clk 0:01:12]}  Ra7 {[%clk 0:01:38]} 25. Red1 {[%clk 0:01:00]}  Qc7 {[%clk 0:01:37]} 26. Qe3 {[%clk 0:00:56]}  Ra3 {[%clk 0:01:35]} 27. Qd4 {[%clk 0:00:51]}  Rxc3 {[%clk 0:01:35]} 28. h4 {[%clk 0:00:47]}  Rc2 {[%clk 0:01:31]} 29. Ra1 {[%clk 0:00:42]}  Qc5 {[%clk 0:01:23]} 30. Qf4 {[%clk 0:00:37]}  Qf5 {[%clk 0:01:13]} 31. Qd4 {[%clk 0:00:35]}  R8c4 {[%clk 0:01:06]} 32. Qd8+ {[%clk 0:00:34]}  Kg7 {[%clk 0:01:06]} 33. Ra8 {[%clk 0:00:21]}  Qxf2+ {[%clk 0:01:05]} 0-1

[Event "November 21 Late 2023"]
[Site "https://www.chess.com"]
[Date "2023.11.21"]
[Round "4"]
[White "DAVIDHDZSTS"]
[Black "Manukyan, Sargis A."]
[Result "0-1"]
[Board "75"]
[TimeControl "180+1"]
[BlackFideId "13303970"]
[WhiteElo "1865"]
[BlackElo "2204"]
[BlackTeam "ARM"]
[WhiteClock "0:00:03"]
[BlackClock "0:01:25"]

1. d4 {[%clk 0:02:57]}  d5 {[%clk 0:03:00]} 2. Nc3 {[%clk 0:02:57]}  e6 {[%clk 0:02:56]} 3. Bf4 {[%clk 0:02:57]}  Nf6 {[%clk 0:02:57]} 4. e3 {[%clk 0:02:57]}  Bd6 {[%clk 0:02:58]} 5. Nf3 {[%clk 0:02:56]}  O-O {[%clk 0:02:58]} 6. Bd3 {[%clk 0:02:54]}  Nc6 {[%clk 0:02:58]} 7. O-O {[%clk 0:02:51]}  Nb4 {[%clk 0:02:59]} 8. Bxd6 {[%clk 0:02:48]}  Qxd6 {[%clk 0:02:57]} 9. a3 {[%clk 0:02:48]}  Nxd3 {[%clk 0:02:57]} 10. Qxd3 {[%clk 0:02:49]}  a5 {[%clk 0:02:55]} 11. Rfe1 {[%clk 0:02:38]}  b6 {[%clk 0:02:55]} 12. e4 {[%clk 0:02:14]}  Ba6 {[%clk 0:02:53]} 13. Qd2 {[%clk 0:02:09]}  dxe4 {[%clk 0:02:52]} 14. Nxe4 {[%clk 0:02:09]}  Nxe4 {[%clk 0:02:53]} 15. Rxe4 {[%clk 0:02:10]}  Bb7 {[%clk 0:02:52]} 16. Rh4 {[%clk 0:01:25]}  Rad8 {[%clk 0:02:02]} 17. Qg5 {[%clk 0:00:35]}  Bxf3 {[%clk 0:01:55]} 18. gxf3 {[%clk 0:00:32]}  Qd5 {[%clk 0:01:49]} 19. Qxd5 {[%clk 0:00:16]}  Rxd5 {[%clk 0:01:42]} 20. c3 {[%clk 0:00:16]}  Rfd8 {[%clk 0:01:42]} 21. Kf1 {[%clk 0:00:16]}  g6 {[%clk 0:01:41]} 22. Ke2 {[%clk 0:00:16]}  e5 {[%clk 0:01:41]} 23. Ke3 {[%clk 0:00:15]}  Kg7 {[%clk 0:01:38]} 24. Re4 {[%clk 0:00:15]}  exd4+ {[%clk 0:01:36]} 25. cxd4 {[%clk 0:00:15]}  R8d7 {[%clk 0:01:35]} 26. Rc1 {[%clk 0:00:14]}  f5 {[%clk 0:01:33]} 27. Re6 {[%clk 0:00:08]}  Rxd4 {[%clk 0:01:30]} 28. Rec6 {[%clk 0:00:08]}  Rd3+ {[%clk 0:01:30]} 29. Kf4 {[%clk 0:00:09]}  R7d4+ {[%clk 0:01:25]} 30. Kg3 {[%clk 0:00:08]}  Rg4+ {[%clk 0:01:24]} 31. Kh3 {[%clk 0:00:03]}  Rxf3# {[%clk 0:01:25]} 0-1

[Event "November 21 Late 2023"]
[Site "https://www.chess.com"]
[Date "2023.11.21"]
[Round "4"]
[White "liwadas82"]
[Black "Vasquez Vargas, Henry Richard"]
[Result "0-1"]
[Board "79"]
[TimeControl "180+1"]
[BlackFideId "3836878"]
[WhiteElo "2455"]
[BlackElo "2012"]
[BlackTeam "PER"]
[WhiteClock "0:00:03"]
[BlackClock "0:00:34"]

1. e4 {[%clk 0:03:00]}  Nf6 {[%clk 0:03:00]} 2. e5 {[%clk 0:03:00]}  Nd5 {[%clk 0:02:58]} 3. d4 {[%clk 0:03:00]}  d6 {[%clk 0:02:57]} 4. Nf3 {[%clk 0:02:59]}  dxe5 {[%clk 0:02:57]} 5. Nxe5 {[%clk 0:02:57]}  c6 {[%clk 0:02:57]} 6. Bc4 {[%clk 0:02:49]}  Nd7 {[%clk 0:02:40]} 7. Nxd7 {[%clk 0:02:28]}  Bxd7 {[%clk 0:02:33]} 8. O-O {[%clk 0:02:28]}  g6 {[%clk 0:02:31]} 9. Qf3 {[%clk 0:02:24]}  Be6 {[%clk 0:02:26]} 10. Re1 {[%clk 0:02:18]}  Bg7 {[%clk 0:02:25]} 11. c3 {[%clk 0:02:07]}  O-O {[%clk 0:02:24]} 12. Bb3 {[%clk 0:02:07]}  Bf5 {[%clk 0:02:02]} 13. Nd2 {[%clk 0:02:01]}  a5 {[%clk 0:01:52]} 14. a4 {[%clk 0:01:53]}  Re8 {[%clk 0:01:47]} 15. Nc4 {[%clk 0:01:49]}  Be6 {[%clk 0:01:41]} 16. Ne5 {[%clk 0:01:46]}  Qb6 {[%clk 0:01:38]} 17. Ba2 {[%clk 0:01:40]}  Rad8 {[%clk 0:01:34]} 18. h4 {[%clk 0:01:32]}  c5 {[%clk 0:01:31]} 19. c4 {[%clk 0:00:48]}  Nb4 {[%clk 0:01:28]} 20. d5 {[%clk 0:00:47]}  Bf5 {[%clk 0:01:14]} 21. Bb1 {[%clk 0:00:14]}  Bxe5 {[%clk 0:00:43]} 22. Rxe5 {[%clk 0:00:12]}  Bxb1 {[%clk 0:00:42]} 23. Rxb1 {[%clk 0:00:12]}  Nc2 {[%clk 0:00:42]} 24. Qd3 {[%clk 0:00:06]}  Nd4 {[%clk 0:00:39]} 25. Re1 {[%clk 0:00:02]}  e6 {[%clk 0:00:38]} 26. Be3 {[%clk 0:00:03]}  Nf5 {[%clk 0:00:35]} 27. Qc2 {[%clk 0:00:02]}  exd5 {[%clk 0:00:34]} 28. cxd5 {[%clk 0:00:02]}  Rxd5 {[%clk 0:00:34]} 29. Bxc5 {[%clk 0:00:02]}  Rxe1+ {[%clk 0:00:33]} 30. Rxe1 {[%clk 0:00:03]}  Qxc5 {[%clk 0:00:34]} 31. Re8+ {[%clk 0:00:03]}  Kg7 {[%clk 0:00:34]} 32. Qe2 {[%clk 0:00:03]}  Qc1+ {[%clk 0:00:33]} 33. Kh2 {[%clk 0:00:03]}  Qf4+ {[%clk 0:00:33]} 34. g3 {[%clk 0:00:02]}  Qd4 {[%clk 0:00:32]} 35. h5 {[%clk 0:00:03]}  Qd2 {[%clk 0:00:25]} 36. Qxd2 {[%clk 0:00:02]}  Rxd2 {[%clk 0:00:25]} 37. Kg2 {[%clk 0:00:03]}  Rxb2 {[%clk 0:00:24]} 38. hxg6 {[%clk 0:00:04]}  hxg6 {[%clk 0:00:25]} 39. Ra8 {[%clk 0:00:04]}  b6 {[%clk 0:00:24]} 40. Ra6 {[%clk 0:00:05]}  Rb4 {[%clk 0:00:24]} 41. f3 {[%clk 0:00:04]}  Ne3+ {[%clk 0:00:24]} 42. Kf2 {[%clk 0:00:04]}  Nd5 {[%clk 0:00:25]} 43. g4 {[%clk 0:00:03]}  Nc3 {[%clk 0:00:26]} 44. Ra7 {[%clk 0:00:03]}  Nxa4 {[%clk 0:00:26]} 45. Kg3 {[%clk 0:00:04]}  Nc5 {[%clk 0:00:27]} 46. g5 {[%clk 0:00:04]}  Rb3 {[%clk 0:00:27]} 47. Kg4 {[%clk 0:00:04]}  a4 {[%clk 0:00:28]} 48. f4 {[%clk 0:00:04]}  a3 {[%clk 0:00:28]} 49. f5 {[%clk 0:00:05]}  Rb4+ {[%clk 0:00:28]} 50. Kg3 {[%clk 0:00:05]}  gxf5 {[%clk 0:00:29]} 51. g6 {[%clk 0:00:04]}  Kxg6 {[%clk 0:00:29]} 52. Rd7 {[%clk 0:00:04]}  Rb3+ {[%clk 0:00:30]} 53. Kf2 {[%clk 0:00:03]}  Nxd7 {[%clk 0:00:31]} 54. Ke1 {[%clk 0:00:04]}  Ne5 {[%clk 0:00:31]} 55. Kd2 {[%clk 0:00:04]}  Nd7 {[%clk 0:00:32]} 56. Kc2 {[%clk 0:00:04]}  Nc5 {[%clk 0:00:33]} 57. Kd2 {[%clk 0:00:04]}  a2 {[%clk 0:00:34]} 58. Kc2 {[%clk 0:00:03]}  a1=Q {[%clk 0:00:34]} 0-1

[Event "November 21 Late 2023"]
[Site "https://www.chess.com"]
[Date "2023.11.21"]
[Round "4"]
[White "GatoRojo150"]
[Black "Miszler, Levente"]
[Result "1/2-1/2"]
[Board "82"]
[TimeControl "180+1"]
[BlackFideId "763276"]
[WhiteElo "2585"]
[BlackElo "2186"]
[BlackTeam "HUN"]
[WhiteClock "0:00:12"]
[BlackClock "0:00:34"]

1. e4 {[%clk 0:03:00]}  e6 {[%clk 0:02:54]} 2. d4 {[%clk 0:03:00]}  d5 {[%clk 0:02:54]} 3. Nc3 {[%clk 0:03:01]}  Nf6 {[%clk 0:02:55]} 4. Bg5 {[%clk 0:02:57]}  dxe4 {[%clk 0:02:55]} 5. Nxe4 {[%clk 0:02:57]}  Nbd7 {[%clk 0:02:54]} 6. Nxf6+ {[%clk 0:02:39]}  Nxf6 {[%clk 0:02:55]} 7. Bxf6 {[%clk 0:02:39]}  Qxf6 {[%clk 0:02:49]} 8. Nf3 {[%clk 0:02:40]}  c5 {[%clk 0:02:48]} 9. Bb5+ {[%clk 0:02:39]}  Bd7 {[%clk 0:02:47]} 10. Bxd7+ {[%clk 0:02:39]}  Kxd7 {[%clk 0:02:48]} 11. dxc5+ {[%clk 0:02:31]}  Kc7 {[%clk 0:02:48]} 12. O-O {[%clk 0:02:24]}  Bxc5 {[%clk 0:02:45]} 13. c3 {[%clk 0:02:17]}  Rad8 {[%clk 0:02:44]} 14. Qe2 {[%clk 0:02:13]}  Qg6 {[%clk 0:02:41]} 15. Ne5 {[%clk 0:02:05]}  Qf5 {[%clk 0:02:41]} 16. Rae1 {[%clk 0:01:59]}  Rd5 {[%clk 0:02:40]} 17. b4 {[%clk 0:01:55]}  Bb6 {[%clk 0:02:37]} 18. a4 {[%clk 0:01:47]}  a5 {[%clk 0:02:34]} 19. Nc4 {[%clk 0:01:42]}  Rhd8 {[%clk 0:02:30]} 20. bxa5 {[%clk 0:01:38]}  Ba7 {[%clk 0:02:25]} 21. Rb1 {[%clk 0:01:22]}  Rd3 {[%clk 0:02:03]} 22. Rb5 {[%clk 0:01:04]}  R8d5 {[%clk 0:01:51]} 23. Qb2 {[%clk 0:00:55]}  Qxf2+ {[%clk 0:01:41]} 24. Qxf2 {[%clk 0:00:47]}  Bxf2+ {[%clk 0:01:38]} 25. Kxf2 {[%clk 0:00:42]}  Rxc3 {[%clk 0:01:32]} 26. Rxd5 {[%clk 0:00:38]}  exd5 {[%clk 0:01:33]} 27. Ne3 {[%clk 0:00:38]}  Rc5 {[%clk 0:01:26]} 28. Rd1 {[%clk 0:00:38]}  Kc6 {[%clk 0:01:24]} 29. Rd4 {[%clk 0:00:29]}  Rxa5 {[%clk 0:01:23]} 30. Nf5 {[%clk 0:00:28]}  g6 {[%clk 0:01:22]} 31. Ne3 {[%clk 0:00:21]}  b5 {[%clk 0:01:10]} 32. axb5+ {[%clk 0:00:17]}  Rxb5 {[%clk 0:01:10]} 33. Rd2 {[%clk 0:00:16]}  Kd6 {[%clk 0:01:09]} 34. Nc2 {[%clk 0:00:16]}  Ke5 {[%clk 0:01:07]} 35. Re2+ {[%clk 0:00:15]}  Kd6 {[%clk 0:01:07]} 36. Rd2 {[%clk 0:00:15]}  Rb3 {[%clk 0:01:05]} 37. Nd4 {[%clk 0:00:15]}  Rb4 {[%clk 0:01:03]} 38. Nc2 {[%clk 0:00:15]}  Rb2 {[%clk 0:01:01]} 39. Ke1 {[%clk 0:00:15]}  Ke5 {[%clk 0:01:00]} 40. Ne3 {[%clk 0:00:15]}  Rxd2 {[%clk 0:00:51]} 41. Kxd2 {[%clk 0:00:16]}  Ke4 {[%clk 0:00:51]} 42. Nc2 {[%clk 0:00:14]}  f5 {[%clk 0:00:50]} 43. Ne1 {[%clk 0:00:15]}  g5 {[%clk 0:00:49]} 44. Nd3 {[%clk 0:00:15]}  h5 {[%clk 0:00:48]} 45. Ke2 {[%clk 0:00:15]}  h4 {[%clk 0:00:47]} 46. Nf2+ {[%clk 0:00:16]}  Ke5 {[%clk 0:00:42]} 47. h3 {[%clk 0:00:16]}  Kf4 {[%clk 0:00:40]} 48. Nd3+ {[%clk 0:00:14]}  Kg3 {[%clk 0:00:40]} 49. Kf1 {[%clk 0:00:14]}  g4 {[%clk 0:00:37]} 50. hxg4 {[%clk 0:00:12]}  fxg4 {[%clk 0:00:38]} 51. Ne5 {[%clk 0:00:13]}  h3 {[%clk 0:00:35]} 52. gxh3 {[%clk 0:00:12]}  gxh3 {[%clk 0:00:35]} 53. Kg1 {[%clk 0:00:13]}  d4 {[%clk 0:00:35]} 54. Nd3 {[%clk 0:00:12]}  Kf3 {[%clk 0:00:34]} 55. Nc5 {[%clk 0:00:12]}  Ke3 {[%clk 0:00:32]} 56. Kh2 {[%clk 0:00:12]}  d3 {[%clk 0:00:33]} 57. Nxd3 {[%clk 0:00:11]}  Kxd3 {[%clk 0:00:34]} 58. Kxh3 {[%clk 0:00:12]} 1/2-1/2

[Event "November 21 Late 2023"]
[Site "https://www.chess.com"]
[Date "2023.11.21"]
[Round "4"]
[White "Guerra Tulcan, Lenin"]
[Black "Van Osch, Mees"]
[Result "0-1"]
[Board "84"]
[TimeControl "180+1"]
[WhiteFideId "3601382"]
[BlackFideId "1035967"]
[WhiteElo "2368"]
[BlackElo "2324"]
[WhiteTeam "ECU"]
[BlackTeam "NED"]
[WhiteClock "0:00:01"]
[BlackClock "0:00:18"]

1. e4 {[%clk 0:03:00]}  c6 {[%clk 0:02:58]} 2. Nf3 {[%clk 0:02:59]}  d5 {[%clk 0:02:58]} 3. exd5 {[%clk 0:03:00]}  cxd5 {[%clk 0:02:58]} 4. Ne5 {[%clk 0:03:00]}  Nc6 {[%clk 0:02:54]} 5. Bb5 {[%clk 0:03:00]}  Qb6 {[%clk 0:02:42]} 6. Bxc6+ {[%clk 0:02:57]}  bxc6 {[%clk 0:02:43]} 7. O-O {[%clk 0:02:58]}  Nf6 {[%clk 0:02:37]} 8. b3 {[%clk 0:02:56]}  Bf5 {[%clk 0:02:33]} 9. Bb2 {[%clk 0:02:56]}  e6 {[%clk 0:02:33]} 10. d3 {[%clk 0:02:56]}  Bd6 {[%clk 0:02:32]} 11. Nd2 {[%clk 0:02:56]}  O-O {[%clk 0:02:31]} 12. h3 {[%clk 0:02:55]}  a5 {[%clk 0:02:27]} 13. a4 {[%clk 0:02:53]}  Qc7 {[%clk 0:02:27]} 14. Ndf3 {[%clk 0:02:51]}  Nd7 {[%clk 0:02:25]} 15. Re1 {[%clk 0:02:50]}  Nxe5 {[%clk 0:02:22]} 16. Nxe5 {[%clk 0:02:49]}  f6 {[%clk 0:02:21]} 17. Nf3 {[%clk 0:02:50]}  e5 {[%clk 0:02:19]} 18. Rc1 {[%clk 0:02:38]}  Rab8 {[%clk 0:02:13]} 19. c4 {[%clk 0:02:36]}  d4 {[%clk 0:02:10]} 20. c5 {[%clk 0:02:23]}  Be7 {[%clk 0:02:07]} 21. Qc2 {[%clk 0:02:10]}  Bg6 {[%clk 0:01:42]} 22. Nd2 {[%clk 0:02:01]}  Qb7 {[%clk 0:01:25]} 23. Ba3 {[%clk 0:01:57]}  Bf7 {[%clk 0:01:17]} 24. Rb1 {[%clk 0:01:57]}  Qa7 {[%clk 0:01:10]} 25. Rb2 {[%clk 0:01:42]}  Rfd8 {[%clk 0:01:09]} 26. Rc1 {[%clk 0:01:30]}  Rd5 {[%clk 0:01:00]} 27. b4 {[%clk 0:00:56]}  axb4 {[%clk 0:00:58]} 28. Bxb4 {[%clk 0:00:56]}  Rd7 {[%clk 0:00:52]} 29. Nc4 {[%clk 0:00:40]}  Bxc5 {[%clk 0:00:21]} 30. Bxc5 {[%clk 0:00:41]}  Rxb2 {[%clk 0:00:21]} 31. Qxb2 {[%clk 0:00:39]}  Qxc5 {[%clk 0:00:21]} 32. Qb8+ {[%clk 0:00:39]}  Qf8 {[%clk 0:00:21]} 33. Qb6 {[%clk 0:00:39]}  Qc8 {[%clk 0:00:20]} 34. a5 {[%clk 0:00:38]}  Rb7 {[%clk 0:00:20]} 35. Qc5 {[%clk 0:00:34]}  Rb5 {[%clk 0:00:21]} 36. Qe7 {[%clk 0:00:30]}  Rb7 {[%clk 0:00:20]} 37. Nd6 {[%clk 0:00:19]}  Rxe7 {[%clk 0:00:19]} 38. Nxc8 {[%clk 0:00:20]}  Rc7 {[%clk 0:00:19]} 39. Rxc6 {[%clk 0:00:20]}  Rxc6 {[%clk 0:00:16]} 40. Ne7+ {[%clk 0:00:21]}  Kf8 {[%clk 0:00:16]} 41. Nxc6 {[%clk 0:00:21]}  Bd5 {[%clk 0:00:17]} 42. Nb4 {[%clk 0:00:21]}  Ba8 {[%clk 0:00:17]} 43. f3 {[%clk 0:00:18]}  Ke7 {[%clk 0:00:18]} 44. Kf2 {[%clk 0:00:14]}  Kd6 {[%clk 0:00:19]} 45. Kg3 {[%clk 0:00:13]}  Kc5 {[%clk 0:00:18]} 46. Na6+ {[%clk 0:00:13]}  Kd6 {[%clk 0:00:16]} 47. Kh4 {[%clk 0:00:13]}  Bb7 {[%clk 0:00:16]} 48. Nb4 {[%clk 0:00:13]}  Kc5 {[%clk 0:00:16]} 49. a6 {[%clk 0:00:13]}  Ba8 {[%clk 0:00:17]} 50. Nc2 {[%clk 0:00:11]}  Kb6 {[%clk 0:00:17]} 51. f4 {[%clk 0:00:11]}  Bxg2 {[%clk 0:00:15]} 52. fxe5 {[%clk 0:00:11]}  fxe5 {[%clk 0:00:15]} 53. Kg4 {[%clk 0:00:09]}  Kxa6 {[%clk 0:00:16]} 54. h4 {[%clk 0:00:09]}  g6 {[%clk 0:00:15]} 55. Kg5 {[%clk 0:00:09]}  Bf1 {[%clk 0:00:16]} 56. Kf6 {[%clk 0:00:09]}  Bxd3 {[%clk 0:00:16]} 57. Nb4+ {[%clk 0:00:09]}  Kb5 {[%clk 0:00:15]} 58. Nxd3 {[%clk 0:00:10]}  e4 {[%clk 0:00:15]} 59. Nf2 {[%clk 0:00:08]}  e3 {[%clk 0:00:14]} 60. Nd3 {[%clk 0:00:03]}  Kc4 {[%clk 0:00:15]} 61. Ne5+ {[%clk 0:00:04]}  Kc3 {[%clk 0:00:15]} 62. Kg7 {[%clk 0:00:03]}  d3 {[%clk 0:00:15]} 63. Kxh7 {[%clk 0:00:03]}  d2 {[%clk 0:00:15]} 64. Nxg6 {[%clk 0:00:04]}  d1=Q {[%clk 0:00:15]} 65. h5 {[%clk 0:00:05]}  Qxh5+ {[%clk 0:00:16]} 66. Kg7 {[%clk 0:00:05]}  Qxg6+ {[%clk 0:00:17]} 67. Kxg6 {[%clk 0:00:05]}  e2 {[%clk 0:00:17]} 68. Kf7 {[%clk 0:00:01]}  e1=Q {[%clk 0:00:18]} 0-1

[Event "November 21 Late 2023"]
[Site "https://www.chess.com"]
[Date "2023.11.21"]
[Round "4"]
[White "elmusmolamas"]
[Black "Buchenau, Frank"]
[Result "1-0"]
[Board "86"]
[TimeControl "180+1"]
[BlackFideId "4604350"]
[WhiteElo "2563"]
[BlackElo "2157"]
[BlackTeam "GER"]
[WhiteClock "0:02:10"]
[BlackClock "0:00:00"]

1. e4 {[%clk 0:03:00]}  e6 {[%clk 0:02:59]} 2. d4 {[%clk 0:03:00]}  d5 {[%clk 0:02:59]} 3. Bd3 {[%clk 0:03:01]}  dxe4 {[%clk 0:02:58]} 4. Bxe4 {[%clk 0:03:02]}  Nf6 {[%clk 0:02:58]} 5. Bf3 {[%clk 0:03:02]}  c5 {[%clk 0:02:59]} 6. Ne2 {[%clk 0:03:03]}  Nc6 {[%clk 0:02:58]} 7. Be3 {[%clk 0:03:03]}  cxd4 {[%clk 0:02:58]} 8. Nxd4 {[%clk 0:03:04]}  Ne5 {[%clk 0:02:59]} 9. Be2 {[%clk 0:03:01]}  Nd5 {[%clk 0:02:55]} 10. Bd2 {[%clk 0:02:49]}  Bc5 {[%clk 0:02:50]} 11. c3 {[%clk 0:02:48]}  O-O {[%clk 0:02:48]} 12. O-O {[%clk 0:02:48]}  Bd7 {[%clk 0:02:38]} 13. Re1 {[%clk 0:02:47]}  Nc6 {[%clk 0:00:00]} 14. Nb3 {[%clk 0:02:10]} 1-0

[Event "November 21 Late 2023"]
[Site "https://www.chess.com"]
[Date "2023.11.21"]
[Round "4"]
[White "Estrategia_vs_Tactica"]
[Black "Seletsky, Grigory"]
[Result "1-0"]
[Board "89"]
[TimeControl "180+1"]
[BlackFideId "14112191"]
[WhiteElo "2321"]
[BlackElo "2482"]
[BlackTeam "UKR"]
[WhiteClock "0:01:43"]
[BlackClock "0:00:20"]

1. d4 {[%clk 0:03:00]}  d6 {[%clk 0:01:36]} 2. Nf3 {[%clk 0:03:01]}  Nf6 {[%clk 0:01:35]} 3. g3 {[%clk 0:03:00]}  g6 {[%clk 0:01:34]} 4. Bg2 {[%clk 0:03:00]}  Bg7 {[%clk 0:01:35]} 5. O-O {[%clk 0:03:01]}  O-O {[%clk 0:01:35]} 6. c4 {[%clk 0:03:02]}  c6 {[%clk 0:01:35]} 7. Nc3 {[%clk 0:03:02]}  Qa5 {[%clk 0:01:35]} 8. b3 {[%clk 0:02:54]}  Qh5 {[%clk 0:01:35]} 9. e3 {[%clk 0:02:50]}  Bh3 {[%clk 0:01:36]} 10. Nh4 {[%clk 0:02:45]}  Qxd1 {[%clk 0:01:32]} 11. Rxd1 {[%clk 0:02:45]}  Bxg2 {[%clk 0:01:32]} 12. Nxg2 {[%clk 0:02:45]}  Nbd7 {[%clk 0:01:27]} 13. Bb2 {[%clk 0:02:45]}  d5 {[%clk 0:01:25]} 14. cxd5 {[%clk 0:02:42]}  Nxd5 {[%clk 0:01:24]} 15. Nxd5 {[%clk 0:02:41]}  cxd5 {[%clk 0:01:24]} 16. Rac1 {[%clk 0:02:42]}  Rfc8 {[%clk 0:01:23]} 17. Ne1 {[%clk 0:02:42]}  e6 {[%clk 0:01:20]} 18. Kf1 {[%clk 0:02:41]}  Bf8 {[%clk 0:01:20]} 19. Ke2 {[%clk 0:02:38]}  Bd6 {[%clk 0:01:20]} 20. Nd3 {[%clk 0:02:35]}  Kf8 {[%clk 0:01:19]} 21. a4 {[%clk 0:02:31]}  Ke7 {[%clk 0:01:18]} 22. Bc3 {[%clk 0:02:27]}  Kd8 {[%clk 0:01:18]} 23. Bb4 {[%clk 0:02:25]}  Bxb4 {[%clk 0:01:11]} 24. Nxb4 {[%clk 0:02:26]}  Rxc1 {[%clk 0:01:11]} 25. Rxc1 {[%clk 0:02:26]}  Rc8 {[%clk 0:01:12]} 26. Rxc8+ {[%clk 0:02:27]}  Kxc8 {[%clk 0:01:12]} 27. Nd3 {[%clk 0:02:26]}  Kc7 {[%clk 0:01:12]} 28. h4 {[%clk 0:02:26]}  Kd6 {[%clk 0:01:12]} 29. f3 {[%clk 0:02:25]}  b6 {[%clk 0:01:11]} 30. Kd2 {[%clk 0:02:23]}  f6 {[%clk 0:01:10]} 31. e4 {[%clk 0:02:16]}  e5 {[%clk 0:00:59]} 32. dxe5+ {[%clk 0:02:13]}  Nxe5 {[%clk 0:00:57]} 33. exd5 {[%clk 0:02:12]}  Nxd3 {[%clk 0:00:48]} 34. Kxd3 {[%clk 0:02:11]}  Kxd5 {[%clk 0:00:49]} 35. g4 {[%clk 0:02:06]}  g5 {[%clk 0:00:44]} 36. hxg5 {[%clk 0:02:00]}  fxg5 {[%clk 0:00:43]} 37. Kc3 {[%clk 0:01:51]}  Ke5 {[%clk 0:00:40]} 38. Kd3 {[%clk 0:01:51]}  Kf4 {[%clk 0:00:39]} 39. Ke2 {[%clk 0:01:51]}  a5 {[%clk 0:00:29]} 40. Kf2 {[%clk 0:01:50]}  h6 {[%clk 0:00:29]} 41. Ke2 {[%clk 0:01:50]}  Kg3 {[%clk 0:00:29]} 42. Ke3 {[%clk 0:01:50]}  Kh4 {[%clk 0:00:28]} 43. Ke4 {[%clk 0:01:46]}  h5 {[%clk 0:00:27]} 44. Kf5 {[%clk 0:01:42]}  hxg4 {[%clk 0:00:20]} 45. fxg4 {[%clk 0:01:43]}  Kg3 {[%clk 0:00:20]} 46. Kxg5 {[%clk 0:01:43]}  Kf3 {[%clk 0:00:21]} 47. Kf5 {[%clk 0:01:43]}  Ke3 {[%clk 0:00:20]} 48. g5 {[%clk 0:01:43]}  Kd3 {[%clk 0:00:20]} 49. g6 {[%clk 0:01:44]}  Kc3 {[%clk 0:00:21]} 50. g7 {[%clk 0:01:44]}  Kxb3 {[%clk 0:00:22]} 51. g8=Q+ {[%clk 0:01:44]}  Kxa4 {[%clk 0:00:23]} 52. Qa2+ {[%clk 0:01:44]}  Kb4 {[%clk 0:00:22]} 53. Ke5 {[%clk 0:01:44]}  b5 {[%clk 0:00:22]} 54. Kd4 {[%clk 0:01:44]}  a4 {[%clk 0:00:22]} 55. Qb2+ {[%clk 0:01:43]}  Ka5 {[%clk 0:00:20]} 56. Kc5 {[%clk 0:01:43]} 1-0